bitfinex-derivatives/quotes_ETHF0:USTF0_20250624
["timestamp","ask_amount","ask_price","bid_price","bid_amount"]
[1750780308648,7.81,2444.1,2443.8,0.81795]
[1750780308851,9.1445,2444.1,2444.0,0.81789]
[1750780309241,7.81,2444.1,2444.0,0.81789]
[1750780309649,0.81804,2443.6,2443.5,0.81804]
[1750780309848,0.81806,2443.5,2443.4,0.81809]
[1750780310257,7.81,2443.8,2443.5,2.04516]
[1750780310461,7.81,2443.8,2443.3,5.25312]
[1750780310647,7.81,2443.8,2443.7,0.81799]
[1750780311059,0.0637515,2444.1,2444.0,0.81789]
[1750780311253,9.2078,2445.0,2444.6,0.81769]
[1750780311954,6.0,2445.0,2444.6,4.02549]
[1750780312347,6.0,2445.0,2444.9,0.81759]
[1750780312853,3.2078,2445.6,2445.5,0.81739]
[1750780313060,1.4894,2445.8,2445.6,0.81733]
[1750780313256,0.81744,2445.4,2445.2,0.81748]
[1750780313464,8.18663791,2445.7,2445.2,0.81747]
[1750780313659,0.81744,2445.4,2445.2,0.81747]
[1750780313859,11.0168,2445.9,2445.0,2.04387]
[1750780314060,0.81736,2445.7,2445.5,0.81739]
[1750780314260,13.38592791,2445.9,2445.3,3.2078]
[1750780314466,2.0437,2445.3,2444.7,3.2078]
[1750780314766,3.2078,2445.6,2444.7,3.2078]
[1750780314767,0.8176,2444.9,2444.7,0.81766]
[1750780315058,0.8176,2444.9,2444.3,0.687]
[1750780315059,0.81771,2444.6,2444.3,0.687]
[1750780315264,1.3846,2444.8,2444.2,0.6605]
[1750780315455,16.60353791,2444.7,2444.0,3.2078]
[1750780315656,4.5924,2444.6,2444.0,4.02568]
[1750780315960,0.81786,2444.1,2443.9,2.1179]
[1750780316162,0.81789,2444.0,2443.8,1.50494]
[1750780316363,0.0637515,2444.1,2443.6,0.81801]
[1750780316558,0.0637515,2444.1,2443.4,3.2078]
[1750780316559,0.81791,2444.0,2443.8,0.81795]
[1750780316960,3.2078,2444.9,2443.8,3.2078]
[1750780317160,0.0637515,2444.1,2444.0,0.81789]
[1750780317360,0.0637515,2444.1,2444.0,4.02569]
[1750780317668,0.0637515,2444.1,2444.0,9.02569]
[1750780318960,3.2078,2444.9,2444.8,0.81763]
[1750780319164,0.678,2445.2,2444.9,0.81758]
[1750780319362,0.678,2445.2,2444.7,3.2078]
[1750780319559,8.486,2445.2,2444.7,3.2078]
[1750780319759,8.486,2445.2,2445.1,0.81753]
[1750780319960,0.678,2445.2,2445.1,0.81753]
[1750780320159,0.678,2445.2,2444.7,5.25193]
[1750780320359,0.678,2445.2,2445.1,0.81753]
[1750780320770,11.0158,2445.3,2445.2,0.81749]
[1750780320966,3.2078,2445.3,2445.2,0.81749]
[1750780321664,7.808,2445.5,2445.4,0.81743]
[1750780321865,47.119,2445.6,2445.5,0.81739]
[1750780322065,0.81736,2445.6,2445.5,0.81739]
[1750780322275,11.9078,2445.9,2445.3,2.04361]
[1750780322466,3.2078,2445.9,2445.8,0.81729]
[1750780322672,7.808,2446.1,2446.0,0.81723]
[1750780322967,17.3252,2446.1,2445.6,2.04338]
[1750780323169,8.7,2446.1,2446.0,0.81723]
[1750780323376,4.02496,2446.2,2446.0,0.8172]
[1750780323560,0.81736,2445.6,2445.5,3.2078]
[1750780323764,0.81741,2445.5,2445.4,0.81741]
[1750780323978,2.04307,2446.0,2445.4,0.81743]
[1750780324163,0.81734,2445.7,2445.3,0.6678]
[1750780324360,1.3861,2445.8,2445.5,0.81737]
[1750780324564,1.3861,2445.8,2445.2,3.2078]
[1750780324874,0.81728,2445.9,2445.4,3.2078]
[1750780325065,3.2078,2446.2,2446.1,0.81719]
[1750780325266,0.6484,2446.3,2446.2,0.81716]
[1750780325462,47.93107,2446.5,2446.2,0.81716]
[1750780325667,54.921,2446.5,2446.1,3.2078]
[1750780325863,47.114,2446.5,2446.1,3.2078]
[1750780326069,0.6484,2446.8,2446.5,0.81705]
[1750780326371,0.6484,2446.8,2446.7,0.81699]
[1750780326572,11.0148,2447.3,2446.7,3.2078]
[1750780326770,3.2078,2447.3,2447.2,0.81683]
[1750780326974,3.2078,2447.3,2447.0,0.81688]
[1750780327170,3.2078,2448.5,2447.1,2.04214]
[1750780327366,3.23363652,2449.3,2448.2,3.2078]
[1750780327571,2.08632,2450.7,2449.2,9.4079566]
[1750780327775,1.4012,2451.8,2450.4,3.2078]
[1750780328075,1.4012,2451.8,2451.7,4.40940517]
[1750780328372,0.6484,2452.5,2451.7,3.2078]
[1750780328575,0.6484,2452.5,2452.4,3.2078]
[1750780328881,0.6484,2452.5,2451.8,1.29455743]
[1750780328882,2.03534,2455.3,2453.0,3.2078]
[1750780329071,3.2078,2454.4,2453.0,3.2078]
[1750780329275,4.0,2455.2,2454.1,3.2078]
[1750780329474,4.0,2455.2,2454.8,3.2078]
[1750780329674,4.0,2455.2,2454.6,3.2078]
[1750780329868,4.0,2455.2,2455.0,3.2078]
[1750780330098,4.0,2455.2,2454.4,3.2078]
[1750780330275,3.2078,2454.9,2454.2,3.2078]
[1750780330473,47.7544,2455.1,2452.7,1.20160517]
[1750780330474,3.2078,2454.7,2454.3,3.2078]
[1750780330771,10.262,2454.8,2453.8,3.2078]
[1750780330772,3.2078,2454.4,2453.8,3.2078]
[1750780330966,0.81475,2453.7,2452.7,3.2078]
[1750780331169,3.2078,2452.9,2452.4,3.2078]
[1750780331381,10.718,2452.8,2451.9,3.2078]
[1750780331682,3.2078,2452.9,2450.8,3.2078]
[1750780331683,5.0,2452.9,2450.8,3.2078]
[1750780331879,9.4079566,2452.5,2451.5,3.2078]
[1750780332070,15.026,2452.4,2451.4,3.2078]
[1750780332276,15.026,2452.4,2451.3,3.2078]
[1750780332572,15.026,2452.4,2450.8,4.99999999]
[1750780332573,3.2078,2452.0,2450.8,3.2078]
[1750780332882,9.4079566,2451.4,2449.0,1.27368166]
[1750780333076,3.2078,2450.3,2449.5,3.2078]
[1750780333277,15.836,2450.2,2449.5,3.2078]
[1750780333474,15.836,2450.1,2449.5,3.2078]
[1750780333675,19.0438,2450.1,2449.5,3.2078]
[1750780333982,0.81609,2449.6,2449.5,3.2078]
[1750780334168,0.81621,2449.3,2449.1,3.2078]
[1750780334368,62.864,2449.2,2448.7,3.2078]
[1750780334578,69.2881,2449.2,2448.7,3.2078]
[1750780334782,3.2078,2448.8,2447.4,3.76012565]
[1750780334979,69.2881,2449.2,2448.7,3.2078]
[1750780334980,64.2881,2449.2,2448.7,3.2078]
[1750780335184,64.2881,2449.2,2448.7,3.28947599]
[1750780335376,3.2078,2448.9,2448.0,3.2078]
[1750780335570,3.2078,2448.9,2448.3,3.2078]
[1750780335976,40.8,2449.1,2448.6,3.2078]
[1750780336173,40.8,2449.1,2448.7,1.3035]
[1750780336485,66.0718,2449.2,2448.7,1.3035]
[1750780336688,66.0718,2449.2,2448.7,6.30349999]
[1750780336978,106.8718,2449.2,2448.7,6.30349999]
[1750780337185,106.8718,2449.2,2448.8,1.3035]
[1750780337377,66.0718,2449.2,2448.8,1.3035]
[1750780337581,66.0718,2449.2,2448.8,6.30349999]
[1750780337882,62.864,2449.2,2448.9,3.2078]
[1750780338076,3.2078,2449.9,2449.0,0.81627]
[1750780338282,19.4298,2449.9,2449.2,3.2078]
[1750780338678,1.2986,2449.8,2449.2,3.2078]
[1750780338880,19.4298,2449.9,2449.3,0.81619]
[1750780339084,19.4298,2449.9,2449.2,8.20779999]
[1750780339085,19.4298,2449.9,2449.5,3.2078]
[1750780339283,3.2078,2449.6,2448.6,3.2078]
[1750780339477,0.0637515,2449.6,2448.9,1.3555]
[1750780339685,3.2078,2449.5,2448.9,1.3555]
[1750780339881,3.2078,2449.0,2448.3,3.2078]
[1750780340085,3.2078,2448.4,2447.8,1.17098604]
[1750780340391,3.2078,2448.4,2446.9,3.2078]
[1750780340392,3.2078,2447.9,2446.9,3.2078]
[1750780340584,3.2078,2447.6,2447.0,1.3555]
[1750780340784,3.2078,2448.0,2447.1,3.2078]
[1750780340979,0.6798,2448.9,2447.6,3.2078]
[1750780341180,40.8,2449.8,2447.2,2.40714088]
[1750780341181,3.2078,2448.1,2447.2,2.40714088]
[1750780341383,3.2078,2448.1,2447.4,4.0246]
[1750780341586,3.2078,2448.1,2447.5,1.4156]
[1750780341782,3.2078,2447.7,2446.4,2.40714088]
[1750780341985,1.35,2448.0,2446.4,2.40714088]
[1750780341986,3.2078,2447.0,2446.4,8.20779999]
[1750780342183,3.2078,2447.3,2447.1,0.81691]
[1750780342381,56.4369566,2447.2,2445.8,2.40714088]
[1750780342693,3.2078,2446.5,2445.5,3.2078]
[1750780342883,41.61714,2446.5,2445.6,0.81743]
[1750780343190,3.2078,2445.7,2445.3,0.81753]
[1750780343386,3.2078,2446.0,2445.0,1.4156]
[1750780343692,3.2078,2445.4,2445.3,0.81752]
[1750780343880,3.2078,2445.5,2445.1,0.08179624]
[1750780344080,3.2078,2445.5,2445.4,0.81749]
[1750780344695,3.2078,2445.9,2445.8,0.81736]
[1750780344893,3.2078,2446.2,2445.6,3.2078]
[1750780345186,3.2078,2446.2,2446.1,0.81726]
[1750780345391,3.2078,2446.2,2445.6,8.20779999]
[1750780345582,3.2078,2446.2,2445.9,0.8173]
[1750780345778,1.3213,2446.1,2445.1,2.40714088]
[1750780345979,3.2078,2445.6,2445.1,4.99999999]
[1750780346177,3.2078,2445.6,2445.4,0.81748]
[1750780346891,3.2078,2445.6,2445.5,0.81746]
[1750780347185,3.2078,2445.9,2445.8,0.81736]
[1750780347593,3.2078,2446.5,2446.4,0.81716]
[1750780347781,8.2078,2446.5,2446.4,0.81716]
[1750780348182,1.4084,2446.7,2446.1,3.2078]
[1750780348386,3.2078,2446.8,2446.7,0.81706]
[1750780348587,3.2078,2446.8,2446.1,8.20779999]
[1750780348892,3.2078,2446.5,2446.4,0.81716]
[1750780349394,8.2078,2446.5,2446.4,0.81716]
[1750780350691,8.2078,2446.5,2446.3,0.81718]
[1750780350891,1.3273,2446.4,2446.3,0.81718]
[1750780351193,8.2078,2446.5,2446.4,0.81716]
[1750780351391,3.2078,2446.5,2446.4,0.81716]
[1750780351589,47.052,2446.9,2446.8,0.81703]
[1750780352595,4.6055,2447.2,2446.8,0.81703]
[1750780352596,0.6839,2447.2,2447.1,0.81693]
[1750780352789,85.6161,2447.5,2447.4,0.81683]
[1750780353094,85.6161,2447.5,2447.1,0.81691]
[1750780353291,85.6161,2447.5,2446.6,2.04274]
[1750780353292,3.2078,2447.2,2446.6,2.04274]
[1750780353485,3.2078,2446.9,2446.4,1.3287]
[1750780353788,2.18253,2447.1,2446.7,0.81704]
[1750780353984,3.2078,2446.8,2446.2,2.04303]
[1750780354289,3.2078,2446.5,2446.4,0.81716]
[1750780355192,3.2078,2446.5,2446.1,1.4069]
[1750780355389,3.2078,2446.5,2446.3,0.81717]
[1750780355590,3.2078,2446.5,2446.4,0.81716]
[1750780355792,3.2078,2446.5,2445.9,4.99999999]
[1750780355989,3.2078,2446.2,2446.1,0.81723]
[1750780356488,0.81727,2446.1,2445.8,0.81733]
[1750780356689,3.2078,2445.9,2445.8,0.81733]
[1750780357003,3.2078,2445.9,2445.0,2.04407]
[1750780357089,3.2078,2445.6,2445.2,2.37183597]
[1750780357282,42.39999,2445.5,2445.3,2.37074849]
[1750780357587,3.2078,2445.4,2444.8,5.75354597]
[1750780357788,3.2078,2445.3,2445.2,0.81756]
[1750780357988,3.2078,2445.3,2445.2,2.37033789]
[1750780358690,3.2078,2445.3,2445.2,7.37033788]
[1750780358891,3.2078,2445.7,2445.6,0.81743]
[1750780359097,3.2078,2445.7,2445.6,2.37020789]
[1750780359491,4.02519,2445.7,2445.6,1.55277789]
[1750780359989,3.2078,2445.7,2445.6,2.37020789]
[1750780360392,4.02519,2445.7,2445.6,4.74204386]
[1750780360693,3.2078,2445.7,2445.6,2.37020789]
[1750780360893,4.02519,2445.7,2445.6,1.55277789]
[1750780361086,3.2078,2445.7,2445.6,2.37020789]
[1750780361289,3.2078,2445.7,2445.6,5.53720934]
[1750780362190,22.0314566,2445.7,2445.2,2.39475903]
[1750780362389,3.2078,2445.3,2444.0,5.52600433]
[1750780362695,47.07,2445.8,2443.6,3.2078]
[1750780362696,0.81801,2443.9,2443.6,0.81807]
[1750780362890,3.2078,2443.7,2443.6,0.8181]
[1750780363090,3.2078,2443.7,2443.5,0.81811]
[1750780363384,3.2078,2443.7,2443.6,2.2516]
[1750780363793,3.2078,2443.7,2443.6,6.43349999]
[1750780364187,3.2078,2443.7,2443.6,7.25159999]
[1750780364395,4.02586,2443.7,2443.6,1.4335]
[1750780364589,0.8181,2443.6,2443.4,0.81814]
[1750780364802,4.02587,2443.7,2443.4,0.81814]
[1750780364993,4.02588,2443.7,2443.4,0.81815]
[1750780365393,4.02588,2443.7,2443.1,1.4335]
[1750780365394,3.2078,2443.7,2443.6,0.8181]
[1750780366403,0.81811,2443.6,2443.3,0.81817]
[1750780366696,43.3928,2443.7,2441.3,3.2078]
[1750780366697,2.04562,2443.2,2441.3,3.2078]
[1750780366899,3.2078,2442.1,2441.4,0.35022414]
[1750780367094,3.2078,2442.1,2441.4,2.04709]
[1750780367401,0.81861,2442.1,2441.3,3.2078]
[1750780367598,9.4079566,2442.6,2441.3,3.2078]
[1750780367599,3.2078,2441.8,2441.7,0.81873]
[1750780367896,3.2078,2441.8,2440.9,3.55740514]
[1750780368098,3.2078,2441.3,2440.5,3.2078]
[1750780368294,3.2078,2441.0,2440.9,0.81897]
[1750780368490,3.2078,2441.9,2440.9,3.2078]
[1750780368685,3.2078,2441.8,2440.8,3.2078]
[1750780368895,0.81885,2441.4,2441.1,3.2078]
[1750780369097,0.81891,2441.2,2440.8,0.81902]
[1750780369296,1.3553,2441.3,2440.6,3.2078]
[1750780369599,3.2078,2441.8,2441.7,0.81873]
[1750780369800,41.8253,2442.1,2441.3,5.25498]
[1750780370001,40.8,2442.0,2441.7,3.2078]
[1750780370202,45.3631,2442.0,2441.4,4.6439]
[1750780370403,45.3631,2442.0,2441.7,0.81871]
[1750780370595,45.3631,2442.0,2441.6,0.81875]
[1750780370797,45.3631,2442.0,2441.4,4.6439]
[1750780370997,3.2078,2441.7,2441.6,0.81877]
[1750780371303,81.248,2442.0,2441.9,0.81867]
[1750780371604,40.446,2442.1,2442.0,0.81863]
[1750780371806,40.462,2442.1,2442.0,0.8186]
[1750780372004,40.462,2442.1,2441.7,1.3996]
[1750780372198,40.462,2442.1,2442.0,0.81863]
[1750780372395,87.907,2442.2,2441.7,1.3996]
[1750780372596,47.107,2442.2,2441.7,1.3996]
[1750780372902,47.107,2442.2,2442.1,0.8186]
[1750780373302,47.107,2442.2,2441.7,1.3996]
[1750780373500,47.107,2442.2,2442.0,0.81861]
[1750780373709,47.107,2442.2,2442.0,0.81862]
[1750780373895,47.92557,2442.2,2442.0,0.81862]
[1750780374102,3.2078,2442.1,2442.0,0.81862]
[1750780374408,43.5428,2442.1,2442.0,0.81862]
[1750780374607,43.5428,2442.1,2441.9,0.81866]
[1750780374608,44.3614,2442.1,2441.9,0.81866]
[1750780374793,43.5428,2442.1,2441.9,0.81866]
[1750780374997,43.5428,2442.1,2441.7,1.3996]
[1750780375198,43.5428,2442.1,2441.3,3.2078]
[1750780375502,3.2078,2441.6,2441.5,0.8188]
[1750780376206,4.02648,2441.9,2441.7,0.81872]
[1750780376406,0.81873,2441.8,2441.2,3.2078]
[1750780376610,3.2078,2441.9,2441.3,1.31882074]
[1750780376611,0.81879,2441.6,2441.3,1.31882074]
[1750780376803,43.3518,2441.6,2441.3,0.81885]
[1750780377102,0.81883,2441.4,2441.2,0.81888]
[1750780377307,0.81893,2441.2,2441.0,0.81895]
[1750780377506,3.2078,2442.0,2440.9,3.2078]
[1750780377806,43.2758,2442.0,2441.9,0.81867]
[1750780378307,3.2078,2442.0,2441.9,0.81867]
[1750780378497,43.3898,2442.0,2441.4,2.04707]
[1750780378703,43.3898,2442.0,2441.3,1.3831]
[1750780379008,0.81868,2441.9,2441.7,0.81873]
[1750780379305,40.236,2441.8,2441.4,2.04709]
[1750780379509,40.236,2441.8,2441.7,0.81873]
[1750780379703,41.02572,2441.8,2441.6,0.81877]
[1750780380004,40.207,2441.8,2440.9,2.04751]
[1750780380205,6.66117,2441.7,2441.0,1.31834384]
[1750780380404,4.02668,2441.3,2441.1,0.81892]
[1750780380605,0.81892,2441.2,2440.8,4.5909]
[1750780380818,4.02678,2441.0,2440.2,2.04804]
[1750780381006,1.4065,2441.7,2440.3,1.31879462]
[1750780381007,0.81917,2440.4,2440.3,1.31879462]
[1750780381198,2.04802,2440.3,2439.2,1.60091841]
[1750780381509,2.04802,2440.3,2438.7,3.19799942]
[1750780381510,3.2078,2439.3,2438.7,4.5898]
[1750780381807,41.61919,2440.4,2439.4,2.04874]
[1750780382012,0.81937,2439.8,2439.5,1.382]
[1750780382304,2.04837,2439.9,2438.8,2.31511841]
[1750780382510,42.52044,2439.8,2439.0,3.2078]
[1750780382704,0.81953,2439.4,2439.1,0.81958]
[1750780382905,0.81947,2439.5,2439.2,0.81956]
[1750780383098,0.81953,2439.4,2439.1,0.81959]
[1750780383298,0.81934,2439.9,2439.5,0.81945]
[1750780383500,3.2078,2440.1,2439.5,2.04869]
[1750780383729,3.2078,2440.9,2440.6,0.8191]
[1750780383904,1.4286,2441.1,2440.2,2.04805]
[1750780384105,0.81892,2441.2,2440.5,3.2078]
[1750780384302,3.2078,2441.3,2440.7,2.04768]
[1750780384500,9.4079566,2441.9,2441.4,0.81882]
[1750780384501,40.659,2441.5,2441.4,0.81882]
[1750780384707,0.81886,2441.4,2441.0,1.4246]
[1750780385008,3.2078,2441.6,2441.1,3.2078]
[1750780385200,3.2078,2441.6,2441.0,1.4246]
[1750780385407,3.2078,2441.6,2441.1,3.2078]
[1750780385711,3.2078,2441.6,2441.5,0.8188]
[1750780386424,1.3217,2442.1,2441.5,3.2078]
[1750780386597,0.08190008,2442.0,2441.5,3.2078]
[1750780386797,3.2078,2441.8,2441.7,0.81872]
[1750780387512,3.2078,2441.8,2441.3,1.3449]
[1750780387707,3.2078,2441.8,2441.7,0.81873]
[1750780388506,3.2078,2441.8,2441.6,0.81875]
[1750780388706,0.81872,2441.8,2441.3,2.94581841]
[1750780388905,3.2078,2441.8,2441.6,0.81874]
[1750780389106,3.2078,2441.8,2441.3,2.94581841]
[1750780389107,3.2078,2441.8,2441.7,0.81873]
[1750780389313,3.2078,2441.8,2441.4,1.60091841]
[1750780389532,0.81874,2441.7,2441.3,2.94581841]
[1750780389713,3.2078,2441.8,2441.7,0.81873]
[1750780390603,8.2078,2441.8,2441.4,1.60091841]
[1750780390811,0.8189,2441.2,2441.1,1.60091841]
[1750780391007,4.0267,2441.2,2441.1,1.60091841]
[1750780391211,3.2078,2441.2,2441.1,2.41984841]
[1750780391409,3.2078,2441.2,2441.1,4.60001168]
[1750780391612,4.0267,2441.2,2441.1,1.3858]
[1750780391808,0.81897,2441.0,2440.9,4.01699942]
[1750780392010,49.21727,2442.4,2441.0,1.3858]
[1750780392212,0.81862,2442.1,2441.9,0.81866]
[1750780392412,0.81862,2442.1,2441.9,2.41963727]
[1750780392613,0.81862,2442.1,2442.0,0.81863]
[1750780392810,47.171,2442.4,2441.8,4.04485303]
[1750780393016,0.81853,2442.3,2442.2,1.61580312]
[1750780393218,0.81853,2442.3,2442.2,1.32102654]
[1750780393510,0.81853,2442.3,2442.2,3.74473122]
[1750780394304,0.81853,2442.3,2442.2,2.13958654]
[1750780394631,0.81853,2442.3,2442.2,1.32102654]
[1750780395011,2.18083,2442.3,2442.2,3.74982317]
[1750780395617,47.171,2442.4,2442.2,2.13957654]
[1750780395815,47.9895,2442.4,2442.3,1.31694185]
[1750780396022,47.9895,2442.4,2442.3,3.74858804]
[1750780396023,51.1973,2442.4,2442.3,3.74858804]
[1750780396321,60.6052566,2442.4,2442.3,3.74858804]
[1750780396516,51.1973,2442.4,2442.3,1.31694185]
[1750780396712,51.1973,2442.4,2442.3,3.74858804]
[1750780397405,51.1973,2442.4,2442.3,1.31694185]
[1750780397610,51.1973,2442.4,2442.3,3.75266313]
[1750780397910,51.1973,2442.4,2442.2,0.81854]
[1750780397911,64.7867566,2442.4,2442.2,0.53417713]
[1750780398112,3.47665,2442.3,2442.0,0.5080205]
[1750780398414,3.47665,2442.3,2441.2,5.52600433]
[1750780398415,2.04667,2441.9,2440.9,3.99949163]
[1750780398609,0.81903,2440.8,2440.7,3.22618303]
[1750780398809,0.81903,2440.8,2440.5,3.28993453]
[1750780398810,0.8191,2440.6,2440.5,3.28993453]
[1750780399017,0.8191,2440.6,2440.5,0.0637515]
[1750780399215,53.0138566,2440.6,2440.5,0.0637515]
[1750780399919,58.0138566,2440.6,2440.5,1.5e-06]
[1750780400122,58.0138566,2440.6,2440.5,1.21909699]
[1750780400123,54.8060566,2440.6,2440.5,1.21909699]
[1750780400325,58.0138566,2440.6,2440.5,1.5e-06]
[1750780400512,0.81913,2440.5,2440.4,1.21909549]
[1750780401018,0.81913,2440.5,2440.3,0.81919]
[1750780401215,3.2078,2440.6,2440.4,1.2182016]
[1750780401523,0.8191,2440.6,2440.5,1.2182016]
[1750780401822,0.81913,2440.5,2440.4,1.2182016]
[1750780402309,0.81917,2440.4,2440.3,1.2182016]
[1750780402506,40.09217,2440.4,2440.3,1.2182016]
[1750780403023,42.4858,2440.9,2440.2,2.04805]
[1750780403220,50.3768,2441.2,2440.7,1.21756598]
[1750780403410,47.169,2441.2,2441.0,0.81895]
[1750780403615,47.169,2441.2,2441.1,0.81893]
[1750780403924,3.2078,2441.5,2441.2,0.81887]
[1750780404115,3.2078,2441.5,2441.0,3.2078]
[1750780404116,3.2078,2441.6,2441.4,1.21659064]
[1750780404317,4.02656,2441.6,2441.5,1.21625982]
[1750780404618,0.81871,2441.8,2441.6,0.81875]
[1750780404820,47.99968,2441.9,2441.7,2.03468272]
[1750780405011,47.99968,2441.9,2441.7,1.21595272]
[1750780405208,47.99968,2441.9,2441.8,1.21595272]
[1750780405424,47.181,2441.9,2441.8,2.03465272]
[1750780405721,47.181,2441.9,2441.8,1.21595272]
[1750780405722,47.99966,2441.9,2441.8,1.21595272]
[1750780406020,47.99966,2441.9,2441.2,3.22618303]
[1750780406021,0.8187,2441.8,2441.7,1.21595272]
[1750780406214,0.81873,2441.7,2441.6,1.21595272]
[1750780407114,4.02653,2441.7,2441.6,1.21595272]
[1750780407916,5.43173,2441.7,2441.6,1.21595272]
[1750780408417,44.22173,2441.7,2441.6,1.21595272]
[1750780408816,0.8189,2441.2,2441.1,3.22618303]
[1750780409015,0.81889,2441.3,2441.1,5.46671303]
[1750780409217,0.81885,2441.4,2441.2,0.8189]
[1750780409510,41.9978,2441.7,2441.1,1.4216]
[1750780409716,3.2078,2441.7,2441.5,0.81877]
[1750780409916,85.8,2441.9,2441.1,1.4216]
[1750780410113,0.8188,2441.5,2441.1,1.4216]
[1750780410313,87.2052,2441.9,2441.5,0.8188]
[1750780410510,0.81876,2441.6,2441.4,0.81881]
[1750780410912,0.81876,2441.6,2441.5,1.22024715]
[1750780411312,39.30576,2441.6,2441.5,1.22024715]
[1750780411511,39.30576,2441.6,2441.5,2.43731546]
[1750780411724,3.2078,2441.7,2441.6,0.81876]
[1750780412021,47.181,2441.9,2441.6,2.04692]
[1750780412225,38.411,2442.2,2441.6,6.59882]
[1750780412427,0.81861,2442.1,2442.0,0.81863]
[1750780412618,42.43739,2442.2,2442.0,0.81863]
[1750780412922,41.6188,2442.2,2442.1,0.8186]
[1750780413119,41.6188,2442.2,2442.0,2.43731546]
[1750780413327,39.1486,2442.1,2442.0,2.43731546]
[1750780413521,40.5584,2442.1,2442.0,2.43731546]
[1750780414115,39.1486,2442.1,2442.0,2.43731546]
[1750780414322,39.1486,2442.1,2441.6,1.3441]
[1750780414323,0.81873,2441.7,2441.6,1.3441]
[1750780414731,0.81872,2441.8,2441.7,0.81873]
[1750780414923,0.81866,2441.9,2441.7,1.21811393]
[1750780415129,2.04683,2441.7,2441.3,1.3184]
[1750780415431,0.8188,2441.5,2441.4,1.21815771]
[1750780415629,4.0266,2441.5,2441.4,1.21815771]
[1750780416530,57.6956,2441.5,2441.4,2.43697273]
[1750780416926,57.6956,2441.5,2441.4,0.30710273]
[1750780416927,62.6956,2441.5,2441.4,0.30710273]
[1750780417229,2.04725,2441.2,2440.5,3.22618303]
[1750780417430,0.81897,2441.0,2440.9,0.819]
[1750780417628,0.81894,2441.1,2440.7,2.04767]
[1750780417824,38.77486,2441.3,2441.2,0.81888]
[1750780418024,0.81895,2441.1,2441.0,2.43782177]
[1750780418329,0.81897,2441.0,2440.9,3.25681177]
[1750780418632,0.819,2440.9,2440.8,4.62463177]
[1750780418846,0.819,2440.9,2440.8,4.62497775]
[1750780419033,5.25507,2441.2,2440.9,0.819]
[1750780419337,0.81899,2441.0,2440.9,1.3678]
[1750780419825,0.81899,2441.0,2440.3,6.04748163]
[1750780419826,2.04762,2440.8,2440.4,3.22618303]
[1750780420031,37.817,2440.7,2440.0,3.22618303]
[1750780420233,0.81923,2440.2,2440.1,1.3747]
[1750780421035,3.2078,2440.5,2440.1,1.3747]
[1750780421226,0.81923,2440.2,2440.1,2.19397]
[1750780421628,0.81923,2440.2,2440.1,1.3747]
[1750780421831,0.81933,2440.0,2439.8,0.81937]
[1750780422134,3.2078,2440.2,2440.1,0.81926]
[1750780422327,3.2078,2440.2,2439.8,1.3747]
[1750780422629,40.8618,2440.2,2440.1,0.81927]
[1750780423435,41.68103,2440.2,2440.1,0.81927]
[1750780423627,0.81928,2440.1,2440.0,0.81928]
[1750780423833,41.68106,2440.2,2440.1,0.81927]
[1750780424136,3.2078,2440.2,2440.1,0.81927]
[1750780424530,3.2078,2440.2,2440.1,5.81927]
[1750780424729,3.2078,2440.2,2439.8,3.22618303]
[1750780424730,0.81934,2439.9,2439.8,3.22618303]
[1750780424926,0.81947,2439.5,2439.4,3.22618303]
[1750780425238,0.81946,2439.6,2439.5,0.81945]
[1750780425436,0.81946,2439.6,2439.3,3.22618303]
[1750780425437,0.8195,2439.4,2439.3,0.81954]
[1750780425633,0.81948,2439.6,2439.5,0.81946]
[1750780425829,37.441,2439.7,2439.1,6.43398303]
[1750780426136,0.81957,2439.2,2439.1,3.22618303]
[1750780426335,0.81974,2438.8,2438.7,0.81973]
[1750780426548,0.81975,2438.7,2438.6,0.81977]
[1750780427037,2.0491,2439.0,2438.4,3.2078]
[1750780427038,3.2078,2438.8,2438.4,3.2078]
[1750780427436,42.59711,2438.8,2438.3,0.81987]
[1750780427639,42.59711,2438.8,2438.2,0.81988]
[1750780427940,40.5478,2438.8,2438.5,0.81978]
[1750780428133,3.2078,2438.8,2438.2,2.04977]
[1750780428435,2.04935,2438.7,2438.2,1.62395238]
[1750780428634,4.02763,2438.5,2438.1,1.62395238]
[1750780428936,55.1918,2438.8,2438.1,1.62395238]
[1750780429242,3.2078,2438.5,2437.9,1.62395238]
[1750780429442,0.81979,2438.6,2438.4,0.81982]
[1750780429642,0.81981,2438.5,2438.4,0.81982]
[1750780429832,55.1918,2438.8,2438.3,0.81985]
[1750780430032,1.3479,2438.7,2437.9,3.67393238]
[1750780430231,0.81982,2438.5,2438.3,0.81986]
[1750780430634,0.81979,2438.6,2438.4,0.81983]
[1750780431435,1.3479,2438.7,2438.0,2.04994]
[1750780431637,51.747,2438.7,2438.2,2.04977]
[1750780431837,51.747,2438.7,2438.6,0.81977]
[1750780432144,52.56674,2438.7,2438.6,0.81977]
[1750780432533,1.3479,2439.1,2438.6,5.0]
[1750780432534,4.02741,2439.1,2438.6,5.0]
[1750780432732,51.728,2439.4,2439.3,0.81954]
[1750780433036,49.26125,2440.1,2439.3,0.81954]
[1750780433037,3.2078,2440.3,2439.3,0.0637515]
[1750780433255,44.14757627,2441.7,2439.3,0.0637515]
[1750780433256,0.81936,2439.9,2439.3,2.1125715]
[1750780433429,3.2078,2440.0,2439.9,0.81934]
[1750780433629,3.2078,2440.0,2439.7,0.8194]
[1750780433838,0.81935,2439.9,2439.8,0.81937]